[Event "EIRCC 2019"]
[Site "Tallinn"]
[Date "2019.12.05"]
[Round "3.20"]
[White "Stocek, Jiri"]
[Black "Martynov, Roman"]
[Result "1/2-1/2"]
[ECO "E47"]
[WhiteElo "2532"]
[BlackElo "2269"]
[Annotator "ChessBase"]
[PlyCount "105"]
[EventDate "2019.12.05"]
[EventType "swiss"]
[EventCountry "EST"]
[SourceTitle "playchess.com"]
[Source "ChessBase"]
[SourceQuality "1"]
[TimeControl "900+10"]

1. d4 {[%emt 0:00:00]} Nf6 {[%emt 0:00:00]} 2. c4 {[%emt 0:00:00]} e6 {[%emt 0:00:00]} 3. Nc3 {[%emt 0:00:00]} Bb4 {[%emt 0:00:07]} 4. e3 {[%emt 0:00:00]} O-O {[%emt 0:00:07]} 5. Bd3 {[%emt 0:00:02]} c5 {[%emt 0:00:53]} 6. Nge2 {[%emt 0:00:11]} cxd4 {[%emt 0:00:44]} 7. exd4 {[%emt 0:00:03]} d5 {[%emt 0:00:01]} 8. cxd5 {[%emt 0:00:03]} Nxd5 {[%emt 0:00:32]} 9. O-O {[%emt 0:00:04]} Nc6 {[%emt 0:00:10]} 10. a3 {[%emt 0:00:07]} Be7 {[%emt 0:00:38]} 11. Bc2 {[%emt 0:00:29]} b6 {[%emt 0:01:45]} 12. Qd3 {[%emt 0:00:03]} Nf6 {[%emt 0:00:17]} 13. Bg5 {[%emt 0:00:12]} g6 {[%emt 0:00:04]} 14. Rad1 {[%emt 0:00:21]} Bb7 {[%emt 0:00:02]} 15. Rfe1 {[%emt 0:00:21]} Rc8 {[%emt 0:00:07]} 16. Qh3 {[%emt 0:00:55]} Re8 {[%emt 0:01:55]} 17. Bh6 {[%emt 0:01:08]} Bf8 {[%emt 0:00:44]} 18. Bxf8 {[%emt 0:00:27]} Rxf8 {[%emt 0:00:24]} 19. Nf4 {[%emt 0:00:06]} Ne7 {[%emt 0:01:44]} 20. Qg3 {[%emt 0:02:24]} Ned5 {[%emt 0:01:05]} 21. Ncxd5 {[%emt 0:04:42]} Rxc2 {[%emt 0:01:11]} 22. Nb4 {[%emt 0:00:20]} Rc8 {[%emt 0:00:46]} 23. h4 {[%emt 0:00:09]} Ne4 {[%emt 0:02:52]} 24. Qg4 {[%emt 0:01:08]} Nf6 {[%emt 0:00:13]} 25. Qh3 {[%emt 0:00:53]} a5 {[%emt 0:00:30]} 26. Nbd3 {[%emt 0:00:12]} Qxd4 {[%emt 0:00:18]} 27. Nxe6 {[%emt 0:01:20]} fxe6 {[%emt 0:00:13]} 28. Ne5 {[%emt 0:00:02]} Qc5 {[%emt 0:00:53]} 29. Qxe6+ {[%emt 0:00:09]} Kh8 {[%emt 0:00:03]} 30. Nf7+ {[%emt 0:01:08]} Kg7 {[%emt 0:00:14]} 31. Nd6 {[%emt 0:00:10]} Rc7 {[%emt 0:00:20]} 32. Rc1 {[%emt 0:00:47]} Qxc1 {[%emt 0:00:36]} 33. Rxc1 {[%emt 0:00:01]} Rxc1+ {[%emt 0:00:01]} 34. Kh2 {[%emt 0:00:02]} Rc7 {[%emt 0:00:09]} 35. Qe5 {[%emt 0:00:47]} Rd7 {[%emt 0:00:22]} 36. g4 {[%emt 0:00:18]} Rxd6 {[%emt 0:00:27]} 37. Qxd6 {[%emt 0:00:03]} Nxg4+ {[%emt 0:00:01]} 38. Kg1 {[%emt 0:00:05]} Bf3 {[%emt 0:00:23]} 39. Kf1 {[%emt 0:00:22]} Rf6 {[%emt 0:00:16]} 40. Qc7+ {[%emt 0:00:07]} Rf7 {[%emt 0:00:08]} 41. Qc3+ {[%emt 0:00:14]} Kh6 {[%emt 0:00:06]} 42. Qd2+ {[%emt 0:00:06]} Kg7 {[%emt 0:00:00]} 43. Qc3+ {[%emt 0:00:07]} Kg8 {[%emt 0:00:12]} 44. Qc8+ {[%emt 0:00:09]} Rf8 {[%emt 0:00:05]} 45. Qc4+ {[%emt 0:00:21]} Kg7 {[%emt 0:00:13]} 46. Qc7+ {[%emt 0:00:11]} Rf7 {[%emt 0:00:06]} 47. Qc3+ {[%emt 0:00:03]} Kg8 {[%emt 0:00:12]} 48. Qc8+ {[%emt 0:00:02]} Kg7 {[%emt 0:00:09]} 49. Qc3+ {[%emt 0:00:02]} Rf6 {[%emt 0:00:11]} 50. Qc7+ {[%emt 0:00:02]} Kg8 {[%emt 0:00:09]} 51. Qc8+ {[%emt 0:00:05]} Kg7 {[%emt 0:00:11]} 52. Qc7+ {[%emt 0:00:02]} Rf7 {[%emt 0:00:29]} 53. Qc3+ 1/2-1/2

[Event "EIRCC 2019"]
[Site "Tallinn"]
[Date "2019.12.05"]
[Round "3.22"]
[White "Lintchevski, Daniil"]
[Black "Kanep, Siim"]
[Result "1-0"]
[ECO "B90"]
[WhiteElo "2515"]
[BlackElo "2260"]
[Annotator "ChessBase"]
[PlyCount "129"]
[EventDate "2019.12.05"]
[EventType "swiss"]
[EventCountry "EST"]
[SourceTitle "playchess.com"]
[Source "ChessBase"]
[SourceQuality "1"]
[TimeControl "900+10"]

1. e4 {[%emt 0:00:02]} c5 {[%emt 0:00:00]} 2. Nf3 {[%emt 0:00:03]} d6 {[%emt 0:00:00]} 3. d4 {[%emt 0:00:01]} cxd4 {[%emt 0:00:00]} 4. Nxd4 {[%emt 0:00:03]} Nf6 {[%emt 0:00:00]} 5. Nc3 {[%emt 0:00:02]} a6 {[%emt 0:00:00]} 6. Be3 {[%emt 0:00:16]} e5 {[%emt 0:00:00]} 7. Nf3 {[%emt 0:00:02]} Be7 {[%emt 0:00:02]} 8. Bc4 {[%emt 0:00:02]} O-O {[%emt 0:00:07]} 9. O-O {[%emt 0:00:02]} Nc6 {[%emt 0:00:21]} 10. Qe2 {[%emt 0:01:38]} Be6 {[%emt 0:00:41]} 11. Bb3 {[%emt 0:00:01]} Rc8 {[%emt 0:00:12]} 12. Rfd1 {[%emt 0:00:07]} h6 {[%emt 0:01:38]} 13. Nd5 {[%emt 0:01:06]} Bxd5 {[%emt 0:01:02]} 14. Bxd5 {[%emt 0:00:02]} Qc7 {[%emt 0:01:53]} 15. c3 {[%emt 0:00:18]} Na5 {[%emt 0:01:30]} 16. a4 {[%emt 0:02:23]} Nc4 {[%emt 0:00:48]} 17. Bxc4 {[%emt 0:00:03]} Qxc4 {[%emt 0:00:02]} 18. Qxc4 {[%emt 0:00:02]} Rxc4 {[%emt 0:00:00]} 19. Nd2 {[%emt 0:00:01]} Rcc8 {[%emt 0:00:43]} 20. c4 {[%emt 0:00:05]} Ng4 {[%emt 0:00:44]} 21. b3 {[%emt 0:00:01]} Nxe3 {[%emt 0:00:11]} 22. fxe3 {[%emt 0:00:02]} Rc5 {[%emt 0:02:44]} 23. Kf2 {[%emt 0:01:09]} b5 {[%emt 0:01:27]} 24. axb5 {[%emt 0:01:14]} axb5 {[%emt 0:00:01]} 25. Ra7 {[%emt 0:00:02]} Bg5 {[%emt 0:00:39]} 26. Rb7 {[%emt 0:00:04]} bxc4 {[%emt 0:00:30]} 27. Nxc4 {[%emt 0:00:04]} f5 {[%emt 0:00:25]} 28. Rxd6 {[%emt 0:01:11]} f4 {[%emt 0:01:36]} 29. Ke2 {[%emt 0:00:58]} fxe3 {[%emt 0:00:22]} 30. Nxe3 {[%emt 0:00:04]} Bxe3 {[%emt 0:00:48]} 31. Kxe3 {[%emt 0:00:01]} Rc3+ {[%emt 0:00:01]} 32. Kd2 {[%emt 0:01:18]} Rc5 {[%emt 0:00:18]} 33. Rg6 {[%emt 0:02:01]} Rd8+ {[%emt 0:00:44]} 34. Ke1 {[%emt 0:00:01]} Rc2 {[%emt 0:00:30]} 35. Rgxg7+ {[%emt 0:00:22]} Kh8 {[%emt 0:00:18]} 36. Rh7+ {[%emt 0:00:30]} Kg8 {[%emt 0:00:01]} 37. Rbg7+ Kf8 38. Rc7 {[%emt 0:00:08]} Rxg2 {[%emt 0:00:25]} 39. Rh8+ {[%emt 0:00:21]} Rg8 {[%emt 0:00:01]} 40. Rxh6 {[%emt 0:00:02]} Rd4 {[%emt 0:00:21]} 41. Rh4 {[%emt 0:00:41]} Rb4 {[%emt 0:00:31]} 42. Rc3 {[%emt 0:01:17]} Rg2 {[%emt 0:00:10]} 43. Kf1 {[%emt 0:00:21]} Rb2 {[%emt 0:00:01]} 44. Rh7 {[%emt 0:00:02]} Rb1+ {[%emt 0:00:11]} 45. Kf2 {[%emt 0:00:19]} Rb2+ {[%emt 0:00:01]} 46. Kf3 {[%emt 0:00:01]} R2xb3 47. Rxb3 {[%emt 0:00:01]} Rxb3+ {[%emt 0:00:01]} 48. Kg4 {[%emt 0:00:01]} Kg8 {[%emt 0:00:48]} 49. Rh3 {[%emt 0:00:08]} Rb5 {[%emt 0:00:10]} 50. Kf5 {[%emt 0:00:02]} Kg7 {[%emt 0:00:01]} 51. Rd3 {[%emt 0:00:26]} Rb2 {[%emt 0:00:16]} 52. Rg3+ {[%emt 0:00:54]} Kf7 {[%emt 0:00:02]} 53. Rh3 {[%emt 0:00:01]} Rb5 {[%emt 0:00:17]} 54. Rh7+ {[%emt 0:00:07]} Kg8 {[%emt 0:00:05]} 55. Rh6 {[%emt 0:00:15]} Kf7 {[%emt 0:00:05]} 56. h4 {[%emt 0:00:11]} Ra5 {[%emt 0:00:09]} 57. h5 {[%emt 0:00:27]} Ra1 {[%emt 0:00:22]} 58. Kxe5 {[%emt 0:00:19]} Kg7 {[%emt 0:00:07]} 59. Rg6+ {[%emt 0:00:18]} Kh7 {[%emt 0:00:03]} 60. Rg2 {[%emt 0:00:15]} Ra5+ {[%emt 0:00:07]} 61. Kf6 {[%emt 0:00:02]} Ra6+ {[%emt 0:00:09]} 62. Kf5 {[%emt 0:00:02]} Ra5+ {[%emt 0:00:03]} 63. e5 {[%emt 0:00:02]} Kh6 {[%emt 0:00:05]} 64. Kf6 {[%emt 0:00:02]} Ra3 {[%emt 0:00:12]} 65. e6 {[%emt 0:00:10]} 1-0

[Event "EIRCC 2019"]
[Site "Tallinn"]
[Date "2019.12.05"]
[Round "3.23"]
[White "Burg, Brent"]
[Black "Pershin, Denis"]
[Result "0-1"]
[ECO "D78"]
[WhiteElo "2236"]
[BlackElo "2509"]
[Annotator "ChessBase"]
[PlyCount "56"]
[EventDate "2019.12.05"]
[EventType "swiss"]
[EventCountry "EST"]
[SourceTitle "playchess.com"]
[Source "ChessBase"]
[SourceQuality "1"]
[TimeControl "900+10"]

1. d4 {[%emt 0:00:00]} Nf6 {[%emt 0:00:22]} 2. Nf3 {[%emt 0:00:00]} d5 {[%emt 0:00:09]} 3. g3 {[%emt 0:00:00]} c6 {[%emt 0:00:18]} 4. Bg2 {[%emt 0:00:00]} g6 {[%emt 0:00:04]} 5. O-O {[%emt 0:00:00]} Bg7 {[%emt 0:00:02]} 6. c4 {[%emt 0:00:01]} O-O {[%emt 0:00:03]} 7. Nbd2 {[%emt 0:00:25]} a5 {[%emt 0:00:15]} 8. b3 {[%emt 0:00:42]} Bf5 {[%emt 0:00:01]} 9. Bb2 {[%emt 0:00:06]} Qd7 {[%emt 0:01:53]} 10. Re1 {[%emt 0:01:15]} Ne4 {[%emt 0:01:34]} 11. Nh4 {[%emt 0:05:18]} Nxd2 {[%emt 0:01:17]} 12. Qxd2 {[%emt 0:00:24]} Bh3 {[%emt 0:00:12]} 13. Rad1 {[%emt 0:01:26]} Bxg2 {[%emt 0:00:05]} 14. Nxg2 {[%emt 0:00:35]} a4 {[%emt 0:00:01]} 15. e4 {[%emt 0:00:39]} dxe4 {[%emt 0:01:12]} 16. Rxe4 {[%emt 0:00:02]} axb3 {[%emt 0:00:01]} 17. axb3 {[%emt 0:00:01]} e6 {[%emt 0:00:01]} 18. Ree1 {[%emt 0:00:39]} Na6 {[%emt 0:00:21]} 19. Nf4 {[%emt 0:00:40]} Rfd8 {[%emt 0:00:15]} 20. d5 {[%emt 0:00:59]} Bxb2 {[%emt 0:01:10]} 21. Qxb2 {[%emt 0:00:00]} exd5 {[%emt 0:00:00]} 22. cxd5 {[%emt 0:00:00]} Qf5 {[%emt 0:04:59]} 23. Re5 {[%emt 0:00:57]} Qf6 {[%emt 0:00:02]} 24. h4 {[%emt 0:00:53]} Nb4 {[%emt 0:01:49]} 25. Nh5 {[%emt 0:02:55]} Qh8 {[%emt 0:00:01]} 26. d6 {[%emt 0:00:08]} Nd5 {[%emt 0:00:58]} 27. Rde1 {[%emt 0:00:01]} Nf6 {[%emt 0:00:47]} 28. d7 Nxd7 {[%emt 0:00:58]} 0-1

[Event "EIRCC 2019"]
[Site "Tallinn"]
[Date "2019.12.05"]
[Round "3.24"]
[White "Sebenik, Matej"]
[Black "Nestor, Kaarel"]
[Result "1-0"]
[ECO "A18"]
[WhiteElo "2504"]
[BlackElo "2255"]
[Annotator "ChessBase"]
[PlyCount "74"]
[EventDate "2019.12.05"]
[EventType "swiss"]
[EventCountry "EST"]
[SourceTitle "playchess.com"]
[Source "ChessBase"]
[SourceQuality "1"]
[TimeControl "900+10"]

1. c4 {[%emt 0:00:00]} Nf6 {[%emt 0:00:00]} 2. Nc3 {[%emt 0:00:00]} e6 {[%emt 0:00:09]} 3. e4 {[%emt 0:00:06]} d6 {[%emt 0:00:57]} 4. d4 {[%emt 0:00:07]} Be7 {[%emt 0:00:01]} 5. Nf3 {[%emt 0:00:05]} c5 {[%emt 0:00:08]} 6. d5 {[%emt 0:00:13]} e5 {[%emt 0:00:08]} 7. Be2 {[%emt 0:00:30]} O-O {[%emt 0:00:06]} 8. O-O {[%emt 0:00:02]} Ne8 {[%emt 0:00:31]} 9. Ne1 {[%emt 0:00:19]} f5 {[%emt 0:00:01]} 10. f4 {[%emt 0:01:48]} exf4 {[%emt 0:02:21]} 11. exf5 {[%emt 0:00:02]} Bxf5 {[%emt 0:00:29]} 12. Bxf4 {[%emt 0:00:02]} Bf6 {[%emt 0:01:40]} 13. Bd3 {[%emt 0:01:29]} Bd4+ {[%emt 0:01:54]} 14. Kh1 {[%emt 0:00:01]} g5 {[%emt 0:00:17]} 15. Bd2 {[%emt 0:00:48]} Ng7 {[%emt 0:00:58]} 16. Qc2 {[%emt 0:00:06]} Bxd3 {[%emt 0:00:27]} 17. Nxd3 {[%emt 0:00:02]} Rxf1+ {[%emt 0:00:08]} 18. Rxf1 {[%emt 0:00:02]} Nd7 {[%emt 0:00:01]} 19. Ne4 {[%emt 0:00:06]} h6 {[%emt 0:01:00]} 20. Nxd6 {[%emt 0:01:48]} Qb6 {[%emt 0:00:06]} 21. Nb5 {[%emt 0:00:45]} Re8 {[%emt 0:00:12]} 22. Nxd4 {[%emt 0:02:16]} cxd4 {[%emt 0:00:01]} 23. c5 {[%emt 0:00:01]} Qa6 {[%emt 0:00:41]} 24. Kg1 {[%emt 0:01:43]} Qxa2 {[%emt 0:00:05]} 25. Nb4 {[%emt 0:00:03]} Qa5 {[%emt 0:00:47]} 26. c6 {[%emt 0:01:27]} bxc6 {[%emt 0:00:03]} 27. dxc6 {[%emt 0:02:33]} Nb6 {[%emt 0:00:06]} 28. Qg6 {[%emt 0:00:35]} Re6 {[%emt 0:01:48]} 29. Qf7+ {[%emt 0:00:05]} Kh7 {[%emt 0:00:00]} 30. c7 {[%emt 0:00:22]} Qc5 {[%emt 0:00:47]} 31. Rc1 {[%emt 0:00:08]} Nc4 {[%emt 0:00:02]} 32. Qf1 {[%emt 0:00:30]} d3+ {[%emt 0:00:09]} 33. Kh1 {[%emt 0:00:01]} Qxc7 {[%emt 0:00:26]} 34. Qxd3+ {[%emt 0:00:06]} Kh8 {[%emt 0:00:20]} 35. Rxc4 {[%emt 0:00:24]} Qe5 {[%emt 0:00:05]} 36. Rc8+ {[%emt 0:00:04]} Re8 {[%emt 0:00:01]} 37. Rxe8+ {[%emt 0:00:03]} Qxe8 {[%emt 0:00:01]} 1-0

[Event "EIRCC 2019"]
[Site "Tallinn"]
[Date "2019.12.05"]
[Round "3.25"]
[White "Kanep, Meelis"]
[Black "Kozak, Adam"]
[Result "1-0"]
[ECO "A45"]
[WhiteElo "2466"]
[BlackElo "2240"]
[Annotator "ChessBase"]
[PlyCount "87"]
[EventDate "2019.12.05"]
[EventType "swiss"]
[EventCountry "EST"]
[SourceTitle "playchess.com"]
[Source "ChessBase"]
[SourceQuality "1"]
[TimeControl "900+10"]

1. d4 {[%emt 0:00:00]} Nf6 {[%emt 0:00:42]} 2. Bg5 {[%emt 0:00:00]} d5 {[%emt 0:00:07]} 3. e3 {[%emt 0:00:02]} c5 {[%emt 0:00:05]} 4. Bxf6 {[%emt 0:00:29]} gxf6 {[%emt 0:00:02]} 5. c4 {[%emt 0:00:14]} dxc4 {[%emt 0:00:09]} 6. Bxc4 {[%emt 0:00:06]} cxd4 {[%emt 0:00:02]} 7. exd4 {[%emt 0:00:19]} Bg7 {[%emt 0:00:02]} 8. Nc3 {[%emt 0:00:13]} O-O {[%emt 0:00:08]} 9. Nge2 {[%emt 0:00:16]} Nc6 {[%emt 0:01:07]} 10. O-O {[%emt 0:00:14]} Bf5 {[%emt 0:01:12]} 11. d5 {[%emt 0:00:41]} Ne5 {[%emt 0:00:12]} 12. Bb3 {[%emt 0:00:02]} Qb6 {[%emt 0:01:10]} 13. Ng3 {[%emt 0:00:36]} Bg6 {[%emt 0:00:24]} 14. Na4 {[%emt 0:00:35]} Qb4 {[%emt 0:02:01]} 15. f4 {[%emt 0:00:27]} Nd3 {[%emt 0:00:10]} 16. f5 {[%emt 0:02:46]} Qd4+ {[%emt 0:00:02]} 17. Kh1 {[%emt 0:00:02]} Nf2+ {[%emt 0:00:01]} 18. Rxf2 {[%emt 0:00:01]} Qxf2 {[%emt 0:00:02]} 19. fxg6 {[%emt 0:00:17]} hxg6 {[%emt 0:00:04]} 20. Qe1 {[%emt 0:00:09]} Qxe1+ {[%emt 0:01:10]} 21. Rxe1 {[%emt 0:00:02]} Rfe8 {[%emt 0:00:01]} 22. Nc5 {[%emt 0:01:50]} b6 {[%emt 0:00:19]} 23. Nd3 {[%emt 0:00:04]} b5 {[%emt 0:01:48]} 24. h4 {[%emt 0:01:08]} f5 {[%emt 0:01:21]} 25. h5 {[%emt 0:00:27]} Kh7 {[%emt 0:00:33]} 26. hxg6+ {[%emt 0:00:17]} fxg6 {[%emt 0:00:02]} 27. Ne2 {[%emt 0:01:43]} Bf6 {[%emt 0:01:27]} 28. g4 {[%emt 0:00:56]} fxg4 {[%emt 0:00:27]} 29. Kg2 {[%emt 0:00:03]} a5 {[%emt 0:02:28]} 30. a4 {[%emt 0:00:32]} Rab8 {[%emt 0:01:27]} 31. axb5 {[%emt 0:00:32]} Rxb5 {[%emt 0:00:02]} 32. Ba4 {[%emt 0:00:13]} Reb8 {[%emt 0:00:01]} 33. Bxb5 {[%emt 0:00:27]} Rxb5 {[%emt 0:00:01]} 34. Nc3 {[%emt 0:01:02]} Bxc3 {[%emt 0:00:14]} 35. bxc3 {[%emt 0:00:02]} Rxd5 {[%emt 0:00:01]} 36. Nf4 {[%emt 0:00:36]} Rd7 {[%emt 0:00:55]} 37. Re4 {[%emt 0:01:10]} Kh6 {[%emt 0:00:51]} 38. Kg3 {[%emt 0:00:25]} g5 {[%emt 0:00:12]} 39. Ne2 {[%emt 0:01:08]} Kh5 {[%emt 0:00:01]} 40. Kf2 {[%emt 0:00:44]} Kh4 {[%emt 0:00:19]} 41. Re6 {[%emt 0:00:23]} g3+ {[%emt 0:00:14]} 42. Nxg3 {[%emt 0:00:08]} Ra7 {[%emt 0:00:11]} 43. Re4+ {[%emt 0:00:25]} g4 {[%emt 0:00:07]} 44. Re5 {[%emt 0:00:03]} 1-0

[Event "EIRCC 2019"]
[Site "Tallinn"]
[Date "2019.12.05"]
[Round "3.26"]
[White "Dubrovin, Robert"]
[Black "Loginov, Valery A"]
[Result "0-1"]
[ECO "E49"]
[WhiteElo "2235"]
[BlackElo "2461"]
[Annotator "ChessBase"]
[PlyCount "102"]
[EventDate "2019.12.05"]
[EventType "swiss"]
[EventCountry "EST"]
[SourceTitle "playchess.com"]
[Source "ChessBase"]
[SourceQuality "1"]
[TimeControl "900+10"]

1. d4 {[%emt 0:00:00]} Nf6 {[%emt 0:00:00]} 2. c4 {[%emt 0:00:00]} e6 {[%emt 0:00:00]} 3. Nc3 {[%emt 0:00:00]} Bb4 {[%emt 0:00:00]} 4. e3 {[%emt 0:00:00]} O-O {[%emt 0:00:00]} 5. Bd3 {[%emt 0:00:00]} d5 {[%emt 0:00:03]} 6. a3 {[%emt 0:00:00]} Bxc3+ {[%emt 0:00:15]} 7. bxc3 {[%emt 0:00:00]} b6 {[%emt 0:00:03]} 8. cxd5 {[%emt 0:00:06]} exd5 {[%emt 0:00:02]} 9. f3 {[%emt 0:00:07]} Ba6 {[%emt 0:00:14]} 10. Ne2 {[%emt 0:00:03]} Bxd3 {[%emt 0:00:17]} 11. Qxd3 {[%emt 0:00:01]} c5 {[%emt 0:00:01]} 12. O-O {[%emt 0:00:05]} Nc6 {[%emt 0:00:03]} 13. Ng3 {[%emt 0:00:05]} Re8 {[%emt 0:00:07]} 14. Bb2 {[%emt 0:00:32]} Qc7 {[%emt 0:04:03]} 15. e4 {[%emt 0:01:01]} cxd4 {[%emt 0:00:12]} 16. cxd4 {[%emt 0:00:06]} Na5 {[%emt 0:00:24]} 17. e5 {[%emt 0:00:10]} Nd7 {[%emt 0:00:07]} 18. f4 {[%emt 0:00:35]} Qc4 {[%emt 0:00:51]} 19. Qf3 {[%emt 0:00:06]} Qb3 {[%emt 0:00:07]} 20. Bc3 {[%emt 0:04:06]} Rac8 {[%emt 0:02:07]} 21. Rac1 {[%emt 0:00:02]} Nc4 {[%emt 0:00:31]} 22. Qxd5 {[%emt 0:01:25]} Red8 {[%emt 0:00:50]} 23. e6 {[%emt 0:01:38]} Nf6 {[%emt 0:00:56]} 24. exf7+ {[%emt 0:00:11]} Kh8 {[%emt 0:00:05]} 25. Qe6 {[%emt 0:00:36]} Nd2 {[%emt 0:01:58]} 26. Rfe1 {[%emt 0:04:06]} Qxe6 {[%emt 0:02:21]} 27. Rxe6 {[%emt 0:00:01]} Nb3 {[%emt 0:00:02]} 28. Rce1 {[%emt 0:00:41]} Rf8 {[%emt 0:00:02]} 29. Bb2 {[%emt 0:01:01]} Rxf7 {[%emt 0:00:07]} 30. d5 {[%emt 0:00:12]} Nxd5 {[%emt 0:00:34]} 31. Nh5 {[%emt 0:00:29]} Kg8 {[%emt 0:00:29]} 32. Re8+ {[%emt 0:01:05]} Rxe8 {[%emt 0:00:33]} 33. Rxe8+ {[%emt 0:00:00]} Rf8 {[%emt 0:00:01]} 34. Rxf8+ {[%emt 0:00:22]} Kxf8 {[%emt 0:00:02]} 35. Bxg7+ {[%emt 0:00:01]} Kf7 {[%emt 0:00:01]} 36. Be5 {[%emt 0:00:02]} Nd2 {[%emt 0:00:13]} 37. Bb2 {[%emt 0:00:27]} Nc4 {[%emt 0:00:26]} 38. Bc1 {[%emt 0:00:00]} b5 {[%emt 0:00:38]} 39. Kf2 {[%emt 0:00:10]} a5 {[%emt 0:00:04]} 40. Ke2 {[%emt 0:00:05]} Nc3+ {[%emt 0:00:15]} 41. Kd3 {[%emt 0:00:05]} Na2 {[%emt 0:00:03]} 42. Bd2 {[%emt 0:00:13]} a4 {[%emt 0:00:31]} 43. Kc2 {[%emt 0:00:51]} Nxa3+ {[%emt 0:00:04]} 44. Kb2 {[%emt 0:00:39]} Nc4+ {[%emt 0:00:02]} 45. Kxa2 {[%emt 0:00:00]} Nxd2 46. Ka3 Nc4+ {[%emt 0:01:03]} 47. Kb4 {[%emt 0:00:02]} Ne3 {[%emt 0:00:01]} 48. Ng3 {[%emt 0:00:41]} Nd5+ {[%emt 0:00:16]} 49. Kxb5 {[%emt 0:00:32]} a3 {[%emt 0:00:05]} 50. Ne2 {[%emt 0:00:00]} a2 {[%emt 0:00:08]} 51. Nc1 {[%emt 0:00:01]} a1=Q {[%emt 0:00:05]} 0-1

[Event "EIRCC 2019"]
[Site "Tallinn"]
[Date "2019.12.05"]
[Round "3.27"]
[White "Thorfinnsson, Bragi"]
[Black "Nivala, Tuomas"]
[Result "1-0"]
[ECO "B06"]
[WhiteElo "2457"]
[BlackElo "2236"]
[Annotator "ChessBase"]
[PlyCount "59"]
[EventDate "2019.12.05"]
[EventType "swiss"]
[EventCountry "EST"]
[SourceTitle "playchess.com"]
[Source "ChessBase"]
[SourceQuality "1"]
[TimeControl "900+10"]

1. e4 {[%emt 0:00:59]} g6 {[%emt 0:00:00]} 2. d4 {[%emt 0:00:02]} Bg7 {[%emt 0:00:00]} 3. Nc3 {[%emt 0:00:12]} c6 {[%emt 0:00:00]} 4. Be2 {[%emt 0:00:18]} d5 {[%emt 0:00:09]} 5. e5 {[%emt 0:00:03]} f6 {[%emt 0:00:09]} 6. f4 {[%emt 0:00:34]} Nh6 {[%emt 0:00:08]} 7. g4 {[%emt 0:01:26]} Nf7 {[%emt 0:00:21]} 8. h4 {[%emt 0:00:17]} fxe5 {[%emt 0:00:52]} 9. dxe5 {[%emt 0:01:08]} e6 {[%emt 0:01:53]} 10. Be3 {[%emt 0:00:22]} b6 {[%emt 0:00:19]} 11. Qd2 {[%emt 0:02:05]} Bb7 {[%emt 0:00:53]} 12. Bf3 {[%emt 0:00:23]} c5 {[%emt 0:01:26]} 13. h5 {[%emt 0:00:20]} g5 {[%emt 0:00:06]} 14. O-O-O {[%emt 0:01:15]} gxf4 {[%emt 0:01:29]} 15. Bxf4 {[%emt 0:00:01]} O-O {[%emt 0:00:03]} 16. h6 {[%emt 0:01:05]} Bxe5 {[%emt 0:00:12]} 17. Bxe5 {[%emt 0:00:44]} Nxe5 {[%emt 0:00:04]} 18. Bg2 {[%emt 0:00:02]} Nc4 {[%emt 0:00:44]} 19. Qe1 {[%emt 0:00:40]} Qg5+ {[%emt 0:00:36]} 20. Kb1 {[%emt 0:00:01]} Ne3 {[%emt 0:00:06]} 21. Rh5 {[%emt 0:01:08]} Qxg4 {[%emt 0:00:29]} 22. Rh4 {[%emt 0:00:04]} Qg5 {[%emt 0:01:08]} 23. Nf3 {[%emt 0:00:07]} Qxg2 {[%emt 0:00:50]} 24. Qxe3 {[%emt 0:00:12]} Qxf3 {[%emt 0:00:29]} 25. Rg1+ {[%emt 0:00:34]} Kh8 {[%emt 0:00:16]} 26. Qg5 {[%emt 0:00:10]} Qf1+ {[%emt 0:00:39]} 27. Nd1 {[%emt 0:00:01]} Qf6 {[%emt 0:00:09]} 28. Qg7+ {[%emt 0:00:04]} Qxg7 {[%emt 0:00:01]} 29. hxg7+ {[%emt 0:00:02]} Kg8 {[%emt 0:00:01]} 30. Rxh7 {[%emt 0:00:17]} 1-0

[Event "EIRCC 2019"]
[Site "Tallinn"]
[Date "2019.12.05"]
[Round "3.28"]
[White "Chernyak, Viktoria"]
[Black "Ladva, Ottomar"]
[Result "1-0"]
[ECO "A13"]
[WhiteElo "2233"]
[BlackElo "2446"]
[Annotator "NA"]
[PlyCount "95"]
[EventDate "2019.12.05"]
[EventType "swiss"]
[EventCountry "EST"]
[SourceTitle "playchess.com"]
[Source "ChessBase"]
[SourceQuality "1"]
[TimeControl "900+10"]

1. c4 {[%emt 0:00:00]} e6 {[%emt 0:00:00]} 2. Nf3 {[%emt 0:00:00]} d5 {[%emt 0:00:00]} 3. g3 {[%emt 0:00:00]} dxc4 {[%emt 0:00:00]} 4. Qa4+ {[%emt 0:00:04]} Nd7 $11 {[%emt 0:00:00]} 5. Qxc4 {[%emt 0:00:08]} a6 {[%emt 0:00:00]} 6. Bg2 {[%emt 0:00:31]} b5 {[%emt 0:00:01]} 7. Qc2 {[%emt 0:00:01]} Bb7 {[%emt 0:00:01]} 8. b3 {[%emt 0:00:04]} Ngf6 {[%emt 0:00:02]} 9. Bb2 {[%emt 0:00:03]} Be7 {[%emt 0:00:05]} 10. O-O {[%emt 0:00:02]} O-O {[%emt 0:00:02]} 11. Nc3 {[%emt 0:00:26]} c5 {[%emt 0:00:03]} 12. Rac1 {[%emt 0:00:05]} Rc8 {[%emt 0:00:02]} 13. d3 {[%emt 0:00:06]} Qb6 {[%emt 0:00:40]} 14. h3 {[%emt 0:00:11]} Rfd8 {[%emt 0:00:03]} 15. Kh2 {[%emt 0:00:02]} Nb8 {[%emt 0:00:27]} 16. e4 {[%emt 0:01:16]} Nc6 {[%emt 0:00:12]} 17. Qe2 {[%emt 0:00:02]} Nd7 {[%emt 0:00:19]} 18. Nd1 {[%emt 0:01:07]} Nd4 {[%emt 0:00:39]} 19. Qd2 {[%emt 0:02:45]} Bf6 {[%emt 0:00:38]} 20. Nxd4 {[%emt 0:00:20]} Bxd4 {[%emt 0:00:06]} 21. Bxd4 {[%emt 0:00:14]} cxd4 {[%emt 0:00:03]} 22. Rxc8 {[%emt 0:00:23]} Rxc8 {[%emt 0:00:02]} 23. f4 {[%emt 0:00:01]} Qc5 {[%emt 0:00:20]} 24. Qf2 {[%emt 0:01:48]} e5 {[%emt 0:00:56]} 25. h4 {[%emt 0:00:58]} Nf6 {[%emt 0:00:05]} 26. Bh3 {[%emt 0:00:26]} Re8 {[%emt 0:00:05]} 27. g4 {[%emt 0:00:06]} Bc8 {[%emt 0:00:43]} 28. Kg3 {[%emt 0:00:19]} h5 {[%emt 0:01:54]} 29. f5 {[%emt 0:01:35]} hxg4 {[%emt 0:00:08]} 30. Bxg4 {[%emt 0:00:01]} Nxg4 {[%emt 0:00:04]} 31. Kxg4 {[%emt 0:00:02]} g6 {[%emt 0:00:03]} 32. Qg3 {[%emt 0:00:46]} Kf8 {[%emt 0:01:57]} 33. h5 {[%emt 0:00:34]} gxh5+ {[%emt 0:02:57]} 34. Kxh5 {[%emt 0:00:06]} Ke7 {[%emt 0:00:44]} 35. Qg7 {[%emt 0:00:04]} Qd6 {[%emt 0:01:54]} 36. Nf2 {[%emt 0:00:07]} Kd8 {[%emt 0:04:19]} 37. Ng4 {[%emt 0:01:29]} Kc7 {[%emt 0:01:05]} 38. Qxf7+ {[%emt 0:02:04]} Re7 {[%emt 0:00:01]} 39. Rc1+ {[%emt 0:00:03]} Kb6 {[%emt 0:00:39]} 40. Qg6 {[%emt 0:00:19]} Be6 {[%emt 0:00:07]} 41. fxe6 {[%emt 0:00:38]} Rxe6 {[%emt 0:00:01]} 42. Qg8 {[%emt 0:00:12]} Ka5 {[%emt 0:00:12]} 43. Rc2 {[%emt 0:00:56]} Kb4 {[%emt 0:00:04]} 44. Qf7 {[%emt 0:00:16]} Re7 {[%emt 0:00:22]} 45. Qf6 {[%emt 0:00:15]} Re6 {[%emt 0:00:13]} 46. Qf2 {[%emt 0:00:19]} Qe7 {[%emt 0:00:08]} 47. Qe1+ {[%emt 0:00:06]} Ka3 {[%emt 0:00:01]} 48. Qa5# {[%emt 0:00:01]} 1-0